Cogmind - Beta 13 @@@ ROGUE MODE // 2024.05.08 @ 00:50:13 Player: Faunarr Result: Destroyed by Y-45 Defender with Beam Rifle Performance ------------- Evolutions (1) 500 Regions Visited (4) 800 Robots Destroyed (35) 175 Value Destroyed (1154) 1154 Prototype IDs (5) 100 Alien Tech Used (0) 0 Bonus (33) 33 TOTAL SCORE: 2762 Bonus ------- Follower Combat Kills 33 Cogmind --------- Core Integrity 0/400 Matter 295/300 Energy 100/100 System Corruption 0% Temperature Cool (27) Movement Treading (240) Ox1 Location -9/Storage Parts ------- > --- POWER (1) -------- (None) > --- PROPULSION (2) --- Light Treads Armored Wheel > --- UTILITY (4) ------ Small Storage Unit Medium Storage Unit Large Storage Unit Visual Processing Unit > --- WEAPON (2) ------- Medium Laser Hammer > --- INVENTORY (15) --- Heavy Ion Engine Cooled Ion Engine Light Nuclear Core Light Treads Medium Matter Pod (100) Medium Armor Plating Advanced EMP Blaster Peak State ------------ > --- POWER ------------ Cold Fusion Reactor > --- PROPULSION ------- Advanced Treads Armored Wheel > --- UTILITY ---------- Small Storage Unit Medium Storage Unit Visual Processing Unit Seismic Detector > --- WEAPON ----------- Improved Medium Laser Heavy Assault Rifle > --- INVENTORY -------- Heavy Ion Engine Cooled Ion Engine Light Nuclear Core Armored Wheel Medium Matter Pod Seismic Detector EM Pulse Gun Medium Laser Advanced EMP Blaster Hammer [Rating: 23] Favorites ----------- Power Cold Fusion Reactor Engine Cooled Ion Engine Power Core Light Nuclear Core Reactor Cold Fusion Reactor Propulsion Armored Wheel Treads Light Treads Wheel Armored Wheel Utility Small Storage Unit Device Seismic Detector Storage Small Storage Unit Processor Visual Processing Unit Weapon Heavy Assault Rifle Energy Gun Medium Laser Ballistic Gun Heavy Assault Rifle Launcher Advanced EMP Blaster Impact Weapon Hammer Build | -11 -10 -10 -9 -9 ------- Run | Yrd Mat Min Mat Sto Slots Evolved 2 | . . . 2 . Power . | . . . . . Propulsion . | . . . . . Utility 2 | . . . 2 . Weapon . | . . . . . Parts Attached 38 | 7 1 1 13 16 Power 6 | 1 . . 2 3 Engine 3 | 1 . . 1 1 Core 1 | . . . 1 . Reactor 2 | . . . . 2 Propulsion 9 | 2 1 . 3 3 Treads 5 | 1 . . 2 2 Leg . | . . . . . Wheel 4 | 1 1 . 1 1 Hover . | . . . . . Flight . | . . . . . Utility 6 | 2 . . 1 3 Device 2 | 1 . . . 1 Storage 3 | 1 . . . 2 Processor 1 | . . . 1 . Hackware . | . . . . . Protection . | . . . . . Artifact . | . . . . . Weapon 17 | 2 . 1 7 7 Energy Gun 5 | 1 . . . 4 Energy Cannon . | . . . . . Ballistic Gun 7 | 1 . 1 4 1 Ballistic Cannon . | . . . . . Launcher 1 | . . . 1 . Special Weapon . | . . . . . Impact Weapon 4 | . . . 2 2 Slashing Weapon . | . . . . . Piercing Weapon . | . . . . . Special Melee Weapon . | . . . . . Unidentified Prototypes 5 | . . . 2 3 Parts Lost 10 | . . 1 2 7 Power 2 | . . 1 . 1 Propulsion 3 | . . . 1 2 Utility 1 | . . . . 1 Weapon 4 | . . . 1 3 Highest Loss Streak 2 | . . 1 1 2 To Critical Strikes . | . . . . . Average Slot Usage (%) 92 | . 100 92 83 95 Engine 3 | . 14 7 1 2 Core 1 | . . . 5 . Reactor 4 | . . . . 8 Treads 11 | . 14 14 11 10 Wheel 11 | . 14 14 10 11 Device 8 | . 14 14 11 5 Storage 19 | . 14 14 11 24 Processor 8 | . . . 11 11 Energy Gun 8 | . 14 14 1 9 Ballistic Gun 11 | . 14 13 17 7 Impact Weapon 1 | . . . 2 2 Naked Turns . | . . . . . Heaviest Build 51 | 15 15 15 23 51 Greatest Support 22 | 20 12 12 22 22 Greatest Overweight (x) 4 | 1 1 1 3 4 Average Overweight (x) 1 | . 1 . . 2 Largest Inventory Capacity 15 | 8 8 8 8 15 Average Capacity 9 | 7 8 8 8 11 Most Carried 10 | 4 8 8 8 10 Average Carried 8 | 2 7 7 7 9 Final Capacity 15 | 8 8 8 8 15 Final Carried 8 | 4 8 8 8 7 Class Distribution -------------------- 100% | Mutant Dominant Class ---------------- Mutant | -10/Materials Mutant | -10/Mines Mutant | -9/Materials Mutant | -9/Storage Resources | -11 -10 -10 -9 -9 ----------- Run | Yrd Mat Min Mat Sto Matter Collected 1038 | 297 . 136 272 333 Remotely . | . . . . . Salvage Created 1486 | 79 . 100 445 862 Parts 109 | 5 . 2 36 66 Haulers Intercepted . | . . . . . Recyclers Shooed . | . . . . . Parts Field Recycled . | . . . . . Retrieved Matter . | . . . . . Parts Self-Destructed . | . . . . . Prevented . | . . . . . Kills | -11 -10 -10 -9 -9 ------- Run | Yrd Mat Min Mat Sto Combat Hostiles Destroyed 30 | . . 2 10 18 Guns 28 | . . 1 10 17 Classes Destroyed 8 | 2 . 3 1 2 Worker 2 | . . 1 . 1 Tunneler 1 | 1 . . . . Recycler 1 | 1 . . . . Watcher 2 | . . . . 2 Swarmer 3 | . . . . 3 Grunt 12 | . . . 7 5 Sentry 14 | . . 1 3 10 Assembled 1 | . . 1 . . Best Kill Streak 4 | 1 . 1 4 3 Combat Bots Only 4 | . . 1 4 3 Max Kills in Single Turn 1 | 1 . 1 1 1 Gunslinging . | . . . . . Exploded . | . . . . . Melee . | . . . . . Uniques/NPCs Destroyed . | . . . . . Combat | -11 -10 -10 -9 -9 -------- Run | Yrd Mat Min Mat Sto Hostile Shots Fired 214 | . . 15 49 150 Missed 56 | . . 3 11 42 Damage Taken 2290 | . . 270 516 1504 Core 471 | . . 70 102 299 Absorbed by Shields . | . . . . . Core Remaining (%) 86 | 100 . 72 . . Volleys Fired 123 | 9 . 10 32 72 Largest 2 | 2 . 2 2 2 Hottest 90 | 70 . 70 70 90 Shots Fired 218 | 18 . 17 56 127 Gun 218 | 18 . 17 56 127 Cannon . | . . . . . Launcher . | . . . . . Special . | . . . . . Kinetic 127 | 9 . 7 49 62 Thermal 85 | 9 . 10 7 59 Explosive . | . . . . . Electromagnetic 6 | . . . . 6 Robot Hit Streak 19 | 4 . 7 10 19 Robot Miss Streak 3 | 2 . 2 3 3 Penetration Max . | . . . . . Secondary Targets 2 | . . . . 2 Max Gunslinging Chain 1 | . . . . 1 Shots Hit Robots 159 | 13 . 12 39 95 Core Hits 59 | 3 . 5 17 34 Critical Kills . | . . . . . Critical Parts Destroyed 1 | . . . . 1 Critical Strikes 10 | 1 . 3 . 6 Burn 9 | 1 . 3 . 5 Smash 1 | . . . . 1 Melee Attacks 17 | . . . 3 14 Impact 17 | . . . 3 14 Slashing . | . . . . . Piercing . | . . . . . Sneak Attacks . | . . . . . Combat Hostiles . | . . . . . Follow-up Attacks . | . . . . . Damage Inflicted 2470 | 160 . 148 562 1600 Guns 2216 | 160 . 148 562 1346 Cannons . | . . . . . Explosions 70 | . . . . 70 Melee 184 | . . . . 184 Ramming . | . . . . . Kinetic 1261 | 84 . 60 501 616 Thermal 954 | 76 . 88 61 729 Explosive . | . . . . . Electromagnetic 71 | . . . . 71 Impact 184 | . . . . 184 Slashing . | . . . . . Piercing . | . . . . . Highest Corruption . | . . . . . Average Corruption . | . . . . . Corruption Purged . | . . . . . Corruption Blocked . | . . . . . Overload Shots . | . . . . . Overflow Damage 19 | . . . . 19 Projectiles . | . . . . . Explosions . | . . . . . Melee 19 | . . . . 19 Knockbacks . | . . . . . Impact . | . . . . . Kinetic . | . . . . . Secondary . | . . . . . Self-Inflicted Damage . | . . . . . Shots . | . . . . . Rammed . | . . . . . Targets Rammed . | . . . . . Kicked . | . . . . . Crushed . | . . . . . Highest Temperature 66 | 9 . 19 41 66 Average Temperature 15 | 6 . 8 8 18 Received Heat Transfer 906 | . . 27 231 648 Siege Activations . | . . . . . Robots Corrupted . | . . . . . Combat Hostiles . | . . . . . Parts Fried 1 | . . . . 1 Impact Corruptions 2 | . . . . 2 Robots Melted . | . . . . . Combat Hostiles . | . . . . . Parts Melted 6 | . . 3 . 3 Heat Transferred 3023 | 296 . 481 185 2061 Parts Sabotaged . | . . . . . Parts Stolen . | . . . . . Parts Stripped . | . . . . . Power Chain Reactions 1 | . . . . 1 Alert | -11 -10 -10 -9 -9 ------- Run | Yrd Mat Min Mat Sto Peak Influence 254 | 10 26 42 182 254 Initial 76 | . 6 9 16 76 Average 71 | 2 12 17 85 90 Maximum Alert Level 1 | . . . . 1 Low Security (%) 98 | 100 100 100 100 97 Level 1 1 | . . . . 2 Level 2 . | . . . . . Level 3 . | . . . . . Level 4 . | . . . . . Level 5 . | . . . . . High Security . | . . . . . Max Security . | . . . . . Squads Dispatched 6 | . 1 . 2 3 Investigation 1 | . 1 . . . Extermination . | . . . . . Reinforcement 2 | . . . 2 . Assault . | . . . . . Garrison 3 | . . . . 3 Intercept . | . . . . . Searches Triggered . | . . . . . Construction Impeded . | . . . . . Haulers Reinforced . | . . . . . Active Scanning Responses . | . . . . . Cargo Convoy Interrupts . | . . . . . Stealth | -11 -10 -10 -9 -9 --------- Run | Yrd Mat Min Mat Sto Distress Signals . | . . . . . Communications Jammed . | . . . . . Distress Signals . | . . . . . Times Spotted 47 | . 1 8 12 26 Peak Tracking Total 9 | . 1 9 5 5 Tactical Retreats 2 | . 1 . . 1 Traps | -11 -10 -10 -9 -9 ------- Run | Yrd Mat Min Mat Sto Traps Triggered . | . . . . . Indirectly . | . . . . . Trap Hack Attempts . | . . . . . Triggered . | . . . . . Disarmed 1 | . . . 1 . Reprogrammed . | . . . . . Reused . | . . . . . Traps Extracted . | . . . . . Installed . | . . . . . Triggered . | . . . . . Machines | -11 -10 -10 -9 -9 ---------- Run | Yrd Mat Min Mat Sto Machines Disabled . | . . . . . Max in Single Turn . | . . . . . Machines Repaired . | . . . . . Machines Dismantled . | . . . . . Machines Sabotaged . | . . . . . Overloaded Fab Kills . | . . . . . Hacking | -11 -10 -10 -9 -9 --------- Run | Yrd Mat Min Mat Sto Machines Accessed 15 | . 3 . 4 8 Terminals 15 | . 3 . 4 8 Fabricators . | . . . . . Repair Stations . | . . . . . Recycling Units . | . . . . . Scanalyzers . | . . . . . Garrison Access . | . . . . . Total Hacks 40 | . 9 . 16 15 Successful 19 | . 1 . 10 8 Failed 21 | . 8 . 6 7 Catastrophic 5 | . 1 . 2 2 Database Lockouts . | . . . . . Manual 32 | . 9 . 15 8 Terminals 40 | . 9 . 16 15 Fabricators . | . . . . . Repair Stations . | . . . . . Recycling Units . | . . . . . Scanalyzers . | . . . . . Garrison Access . | . . . . . Terminal Hacks 10 | . . . 5 5 Open Door 3 | . . . . 3 Branch Access Points 2 | . . . 2 . Unreport Threat 3 | . . . 1 2 Locate Traps 1 | . . . 1 . Disarm Traps 1 | . . . 1 . Fabricator Hacks . | . . . . . Repair Station Hacks . | . . . . . Recycling Unit Hacks . | . . . . . Scanalyzer . | . . . . . Garrison Access Hacks . | . . . . . Unauthorized Hacks 9 | . 1 . 5 3 Terminals 9 | . 1 . 5 3 Botnet 8 | . 1 . 4 3 Operators 1 | . . . 1 . Fabricators . | . . . . . Repair Stations . | . . . . . Recycling Units . | . . . . . Scanalyzers . | . . . . . Garrison Access . | . . . . . Data Cores Recovered . | . . . . . Used . | . . . . . Hacking Detections 10 | . 3 . 2 5 Full Trace Events 1 | . 1 . . . Feedback Events . | . . . . . Feedback Blocked . | . . . . . Robot Schematics Acquired . | . . . . . Robots Built . | . . . . . Authchips . | . . . . . Time . | . . . . . Total Robot Build Rating . | . . . . . Part Schematics Acquired . | . . . . . Parts Built . | . . . . . Authchips . | . . . . . Time . | . . . . . Total Part Build Rating . | . . . . . Parts Repaired . | . . . . . Time . | . . . . . Parts Recycled . | . . . . . Recycled Matter . | . . . . . Retrieved Matter . | . . . . . Retrieved Components . | . . . . . Parts Scanalyzed . | . . . . . Part Schematics Acquired . | . . . . . Parts Damaged . | . . . . . Bothacking | -11 -10 -10 -9 -9 ------------ Run | Yrd Mat Min Mat Sto Used RIF Installer . | . . . . . Robots Hacked . | . . . . . Non-combat . | . . . . . Combat . | . . . . . Robot Hacks Applied . | . . . . . Relay Couplers Released . | . . . . . Fabnet Peak Effective % . | . . . . . Robots Rewired . | . . . . . Allies Hacked . | . . . . . Hacks Repelled . | . . . . . Allies | -11 -10 -10 -9 -9 -------- Run | Yrd Mat Min Mat Sto Total Allies 2 | . . 2 . . Largest Group 2 | . . 2 . . Highest-Rated Group 42 | . . 42 . . Highest-Rated Ally 31 | . . 31 . . Total Orders . | . . . . . Ally Attacks 10 | . . 10 . . Total Damage 165 | . . 165 . . Kills 2 | . . 2 . . Allies Corrupted . | . . . . . Allies Melted . | . . . . . Intel | -11 -10 -10 -9 -9 ------- Run | Yrd Mat Min Mat Sto Robot Analysis Total . | . . . . . Derelict Logs Recovered 1 | . . 1 . . Drone Launches . | . . . . . Drone Recoveries . | . . . . . Exploration | -11 -10 -10 -9 -9 ------------- Run | Yrd Mat Min Mat Sto Turns Passed 2674 | 75 216 338 601 1444 Spaces Moved 1450 | 38 201 285 298 628 Core 46 | 3 . . 43 . Treads 483 | 2 . . 168 313 Legs . | . . . . . Wheels 921 | 33 201 285 87 315 Hover . | . . . . . Flight . | . . . . . Fastest Speed 50 | 50 95 90 90 120 Average Speed 144 | 88 103 96 147 182 Slowest Speed 240 | 160 105 105 225 240 Overloaded Moves . | . . . . . Propulsion Burnouts . | . . . . . Robots Hopped . | . . . . . Cave-ins Triggered . | . . . . . Exploration Rate (%) 39 | 3 25 53 26 90 Regions Visited 4 Branch Regions 2 Pre-discovered Areas . | . . . . . Known Exits Taken 1 | . . . 1 . Unknown Exits Taken 3 | 1 1 1 . . Scrap Searched . | . . . . . Spaces Dug 7 | . . . 3 4 Terrain Destroyed 12 | . . . 3 9 Melee 7 | . . . 3 4 Projectile . | . . . . . AOE 5 | . . . . 5 Terrain Rammed . | . . . . . Walls Destroyed . | . . . . . Machines Disabled . | . . . . . Actions | -11 -10 -10 -9 -9 --------- Run | Yrd Mat Min Mat Sto Total 1768 | 57 208 330 402 771 Wait 117 | . . 33 50 34 Move 1446 | 37 200 284 297 628 Hop . | . . . . . Pick Up 17 | 4 5 1 3 4 Fast Attach 13 | 7 . 1 2 3 Attach 6 | . . . 2 4 Detach . | . . . . . Swap 19 | . 1 . 9 9 Drop 10 | . 2 1 4 3 Fire 123 | 9 . 10 32 72 Melee 17 | . . . 3 14 Ram . | . . . . . Kick . | . . . . . Crush . | . . . . . Escape Stasis . | . . . . . Rewire . | . . . . . Trap . | . . . . . Miscellaneous . | . . . . . Route ------- -11/Scrapyard -10/Materials -10/Mines (discovered 2 exits: *Mat / Sub) -9/Materials (discovered 3 exits: Min x2 / *Sto) -9/Storage (discovered 2 exits: [*Mat] / [*Rec]) History --------- Turn | Location | Event 21 | -11/Scrapyard | Discovered new exit (range 15) 76 | -11/Scrapyard | Entered Materials 276 | -10/Materials | Discovered new exit (range 6) 292 | -10/Materials | Entered Mines 306 | -10/Mines | Build established: Mutant 370 | -10/Mines | Discovered new exit (range 8) 374 | -10/Mines | Received a Rocket Launcher from a helpful Derelict 442 | -10/Mines | Assembled infested the area 447 | -10/Mines | Assisted by a Guerilla fighting off Assembled 567 | -10/Mines | Identified exit to Subcaves 630 | -10/Mines | Entered Materials 630 | -9/Materials | Evolved 2 slots: Utility x2 775 | -9/Materials | Identified exit to Mines 775 | -9/Materials | Identified exit to Storage 1231 | -9/Materials | Entered Storage 1605 | -9/Storage | Used back door to open Recycling access 1605 | -9/Storage | Discovered new exit (range 5) 1990 | -9/Storage | Garrison activated, responded to threat 2030 | -9/Storage | Core integrity fell below 50% 2299 | -9/Storage | Discovered new exit (range 15) 2571 | -9/Storage | Core integrity fell below 20% 2675 | -9/Storage | Destroyed by Y-45 Defender with Beam Rifle Last Messages --------------- Awaiting botnet instructions. 02521_ U-05 Engineer builds a Wall. 02527_ Connecting with Door Terminal... >>Open(Door) Sealed Heavy Doors opened. 02570_ EM Pulse Gun destroyed. 02575_ Destroyed Heat Sink. 02575_ Y-45 Defender system corrupted by crushing effect. 02579_ Critical hit (Burn: +37). 02581_ Y-45 Defender suffers critical hit (Smash). 02581_ Destroyed Lgt. Treads. 02581_ Y-45 Defender system corrupted by crushing effect. 02582_ Y-45 Defender system terminally corrupted. 02582_ Imp. Ion Engine fried. 02585_ Acquired 5 matter. 02669_ Cold Fusion Reactor destroyed. Map ----- +----------------------------------------------------+ | ?????????????# """????# """#??? | | ?????????????# """????# """#?## | | ?????????????? ""?????# #?# | | ?????????##??? ?????# #?# | | ??????#### ####+#########+######## | | ??????# = ! | | ??????# < * | | ??????# #T####+### ###/####### | | ??????########??# T## ## # | | ????????????????#[### ## % # | | ????????????????# #?# #% # | | ????????????????###?# ## # | | ????????????????????# ## # | | ????????????????????# ## " + | | ??????????#?????????# ## """ # | | ?????????? ?????????# ## """" # | | ?????????? ????????## ## """" # | | ?????????# ######### ########## | | ?????????+ ##### | | ?????????# T | | ??????????# ### #### ###+###### | | ??????????# #?#+#####+### # | | ??????????# #?# # # | | ?######???# #?# # + | | # #### ### # # | | # """" Y @ + # # | | # """" ####Y### # # | | # """" ??? # # ## | | # """"???? # # #? | | ? ??? # # #? | | #### ???? ""####################? | | ???##???# Y"#????????????????#### | | ????????# ""#???????????????## | | ????????# #???????????????#T | | ????????#######???????????????## ## | | ??????????????????????????????#! !? | | ??????????????????????????????#! !? | | ??????????????????????????????#! !# | | ??????????????????????????????#! !# | | ??????????????????????????????##### | | ??????????????????????????????????? | | ???????????????????????????????#### | | ???????????????????????????????# | | ???????????????????????????????# | | ???????????????????????????????# | | ???????????????????????????????#### | | ??????????????????????????????????? | | ??????????????????????????????????? | | ??????????????????????????????????# | | ??????????????????????????????????# | +----------------------------------------------------+ Best States ------------- Heat Dissipation 28 Energy Generation 17 Energy Capacity 280 Matter Stores 300 Matter Capacity 300 Sight Range 18 Terrain Scan Density 10 Evasion (%) 44 Recoil Reduction 1 Item Schematics ----------------- None Robot Schematics ------------------ None Fabricated ------------ Nothing Alien Tech Used ----------------- None Achievements -------------- None Challenges ------------ None Game ------ Seed ConstructHelicalFilter Manual? 0 Play Time 00:21:51 Cumulative 27.2 hours Start 2024.05.08 @ 00:30:03 End 2024.05.08 @ 00:50:13 Sessions 1 Manual Loads 0 Difficulty Rogue Special Mode None Game No. 51 Rogue 51 Adventurer 0 Explorer 0 Win Type - Total 0 Types 0/0/0/0/0/0/0/0/0 Lore% 22 Gallery% 31 Achievement% 29 Wizard Run 0 Options --------- Layout 1 ASCII 0 Keyboard 0 Movement Vi Keybinds 0 Fullscreen 2 Font 24/Smallcaps Map View 50x35 Zoom Use 0% Tactical HUD 1 Map Filters NONE Filters NONE Steam 1 RUN: 45ab7feb-ffed-483b-acf2-8a57fc342a9c